Cogmind - Beta 14 @@@ ROGUE MODE // 2024.12.30 @ 17:41:13 Player: spoonum Result: Destroyed by S-10 Pest with Light Assault Rifle Performance ------------- Evolutions (0) 0 Regions Visited (2) 400 Robots Destroyed (11) 55 Value Destroyed (280) 280 Prototype IDs (0) 0 Alien Tech Used (0) 0 Bonus (0) 0 TOTAL SCORE: 735 Bonus ------- None Cogmind --------- Core Integrity 0/250 Matter 300/300 Energy 250/250 System Corruption 0% Temperature Cool (0) Movement Treading (160) Location -10/Mines Parts ------- > --- POWER (1) -------- Ion Engine > --- PROPULSION (2) --- Light Treads Light Treads > --- UTILITY (2) ------ Heat Sink Large Storage Unit > --- WEAPON (2) ------- EM Pulse Gun Light Assault Rifle > --- INVENTORY (15) --- Aluminum Leg Aluminum Leg Trap Extractor (0/4) Maul Peak State ------------ > --- POWER ------------ Light Ion Engine > --- PROPULSION ------- Aluminum Leg Aluminum Leg > --- UTILITY ---------- Disposable Heat Sink Small Storage Unit > --- WEAPON ----------- Light Assault Rifle Light Assault Rifle > --- INVENTORY -------- Ion Engine Light Treads Light Treads Wheel Wheel Trap Extractor EM Pulse Gun Maul [Rating: 9] Favorites ----------- Power Light Ion Engine Engine Light Ion Engine Propulsion Aluminum Leg Treads Light Treads Leg Aluminum Leg Utility Small Storage Unit Device Terrain Scanner Storage Small Storage Unit Weapon Light Assault Rifle Energy Gun EM Pulse Gun Ballistic Gun Light Assault Rifle Impact Weapon Maul Build | -11 -10 -10 ------- Run | Yrd Mat Min Slots Evolved . | . . . Power . | . . . Propulsion . | . . . Utility . | . . . Weapon . | . . . Parts Attached 16 | 1 10 5 Power 2 | . 1 1 Engine 2 | . 1 1 Core . | . . . Reactor . | . . . Propulsion 4 | . 4 . Treads 2 | . 2 . Leg 2 | . 2 . Wheel . | . . . Hover . | . . . Flight . | . . . Utility 5 | . 4 1 Device 4 | . 3 1 Storage 1 | . 1 . Processor . | . . . Hackware . | . . . Protection . | . . . Artifact . | . . . Weapon 5 | 1 1 3 Energy Gun 1 | . . 1 Energy Cannon . | . . . Ballistic Gun 3 | 1 1 1 Ballistic Cannon . | . . . Launcher . | . . . Special Weapon . | . . . Impact Weapon 1 | . . 1 Slashing Weapon . | . . . Piercing Weapon . | . . . Special Melee Weapon . | . . . Unidentified Prototypes . | . . . Parts Lost 3 | . . 3 Power 1 | . . 1 Propulsion . | . . . Utility 1 | . . 1 Weapon 1 | . . 1 Highest Loss Streak 3 | . . 3 To Critical Strikes . | . . . Average Slot Usage (%) 98 | . 99 91 Engine 13 | . 13 12 Treads 10 | . 7 28 Leg 17 | . 19 . Device 13 | . 13 14 Storage 14 | . 14 14 Ballistic Gun 25 | . 28 10 Peak Build Rating 9 | 6 9 7 Average Rating 7 | 6 7 6 On Entrance 6 | 6 6 7 Naked Turns . | . . . Heaviest Build 29 | 11 26 29 Greatest Support 40 | 20 40 40 Greatest Overweight (x) . | . . . Average Overweight (x) . | . . . Largest Inventory Capacity 15 | 8 15 15 Average Capacity 10 | 8 9 15 Most Carried 8 | 6 8 7 Average Carried 7 | 6 7 5 Final Capacity 15 | 8 15 15 Final Carried 7 | 6 7 4 Class Distribution -------------------- 100% | Mutant Dominant Class ---------------- Mutant | -10/Materials Mutant | -10/Mines Resources | -11 -10 -10 ----------- Run | Yrd Mat Min Matter Collected 459 | 211 179 69 Remotely . | . . . Salvage Created 308 | . 207 101 Parts 18 | . 14 4 Haulers Intercepted . | . . . Recyclers Shooed . | . . . Parts Field Recycled . | . . . Retrieved Matter . | . . . Parts Self-Destructed . | . . . Prevented . | . . . Kills | -11 -10 -10 ------- Run | Yrd Mat Min Combat Hostiles Destroyed 11 | . 7 4 Melee 1 | . . 1 Guns 9 | . 7 2 Classes Destroyed 2 | . 2 . Swarmer 5 | . 3 2 Grunt 6 | . 4 2 Best Kill Streak 2 | . 2 2 Combat Bots Only 2 | . 2 2 Max Kills in Single Turn 1 | . 1 1 Gunslinging . | . . . Exploded . | . . . Melee 1 | . . 1 Uniques/NPCs Destroyed . | . . . Combat | -11 -10 -10 -------- Run | Yrd Mat Min Hostile Shots Fired 81 | . 40 41 Missed 15 | . 7 8 Damage Taken 809 | 8 426 375 Core 250 | 4 145 101 Absorbed by Shields . | . . . Regen/Repaired (Parts) 68 | . 68 . Core Remaining (%) 98 | 98 . . Volleys Fired 59 | 1 50 8 Largest 2 | 2 2 2 Hottest 60 | 60 40 60 Shots Fired 118 | 2 100 16 Gun 118 | 2 100 16 Cannon . | . . . Launcher . | . . . Special . | . . . Kinetic 114 | 1 100 13 Thermal . | . . . Explosive . | . . . Electromagnetic 4 | 1 . 3 Robot Hit Streak 16 | 1 8 16 Robot Miss Streak 3 | 1 3 . Penetration Max . | . . . Secondary Targets 1 | . . 1 Max Gunslinging Chain 1 | . . 1 Shots Hit Robots 89 | 1 66 22 Core Hits 28 | 1 21 6 Critical Kills . | . . . Critical Parts Destroyed 2 | . 1 1 Critical Strikes 2 | . 1 1 Destroy 1 | . 1 . Smash 1 | . . 1 Melee Attacks 9 | . . 9 Impact 9 | . . 9 Slashing . | . . . Piercing . | . . . Sneak Attacks . | . . . Combat Hostiles . | . . . Follow-up Attacks . | . . . Damage Inflicted 982 | 70 551 361 Guns 705 | 23 551 131 Cannons . | . . . Explosions 47 | 47 . . Melee 230 | . . 230 Ramming . | . . . Kinetic 659 | 10 551 98 Thermal 47 | 47 . . Explosive . | . . . Electromagnetic 46 | 13 . 33 Impact 230 | . . 230 Slashing . | . . . Piercing . | . . . Highest Corruption . | . . . Average Corruption . | . . . Corruption Purged . | . . . Corruption Blocked . | . . . Overload Shots . | . . . Overflow Damage 59 | . . 59 Projectiles . | . . . Explosions . | . . . Melee 59 | . . 59 Knockbacks 1 | . . 1 Impact 1 | . . 1 Kinetic . | . . . Secondary . | . . . Self-Inflicted Damage 9 | 9 . . Shots 1 | 1 . . Rammed . | . . . Targets Rammed . | . . . Kicked . | . . . Crushed . | . . . Highest Temperature 36 | 32 36 15 Average Temperature 13 | 22 13 11 Received Heat Transfer 423 | . 258 165 Siege Activations . | . . . Robots Corrupted 1 | . . 1 Combat Hostiles 1 | . . 1 Parts Fried . | . . . Impact Corruptions 2 | . . 2 Robots Melted . | . . . Combat Hostiles . | . . . Parts Melted . | . . . Heat Transferred 100 | 100 . . Parts Sabotaged . | . . . Parts Stolen . | . . . Parts Stripped . | . . . Power Chain Reactions 1 | 1 . . Alert | -11 -10 -10 ------- Run | Yrd Mat Min Peak Influence 200 | . 200 153 Initial 78 | . . 78 Average 78 | . 78 97 Maximum Alert Level 1 | . 1 . Low Security (%) 88 | 100 86 100 Level 1 11 | . 13 . Level 2 . | . . . Level 3 . | . . . Level 4 . | . . . Level 5 . | . . . High Security . | . . . Max Security . | . . . Squads Dispatched 2 | . 2 . Investigation . | . . . Extermination . | . . . Reinforcement 2 | . 2 . Assault . | . . . Garrison . | . . . Intercept . | . . . Searches Triggered . | . . . Construction Impeded . | . . . Haulers Reinforced . | . . . Active Scanning Responses . | . . . Cargo Convoy Interrupts . | . . . Stealth | -11 -10 -10 --------- Run | Yrd Mat Min Distress Signals 2 | . 2 . Communications Jammed . | . . . Distress Signals . | . . . Times Spotted 22 | . 16 6 Peak Tracking Total 4 | . 4 3 Tactical Retreats 3 | . 2 1 Traps | -11 -10 -10 ------- Run | Yrd Mat Min Traps Triggered 1 | . 1 . Indirectly . | . . . Trap Hack Attempts . | . . . Triggered . | . . . Disarmed . | . . . Reprogrammed . | . . . Reused . | . . . Traps Extracted . | . . . Installed . | . . . Triggered . | . . . Machines | -11 -10 -10 ---------- Run | Yrd Mat Min Machines Disabled . | . . . Max in Single Turn . | . . . Machines Repaired . | . . . Machines Dismantled . | . . . Machines Sabotaged . | . . . Overloaded Fab Kills . | . . . Hacking | -11 -10 -10 --------- Run | Yrd Mat Min Machines Accessed 4 | . 4 . Terminals 3 | . 3 . Fabricators . | . . . Repair Stations 1 | . 1 . Recycling Units . | . . . Scanalyzers . | . . . Garrison Access . | . . . Total Hacks 12 | . 12 . Successful 4 | . 4 . Failed 8 | . 8 . Catastrophic 1 | . 1 . Database Lockouts . | . . . Manual 5 | . 5 . Terminals 9 | . 9 . Fabricators . | . . . Repair Stations 3 | . 3 . Recycling Units . | . . . Scanalyzers . | . . . Garrison Access . | . . . Terminal Hacks 1 | . 1 . Hauler Manifests 1 | . 1 . Fabricator Hacks . | . . . Repair Station Hacks 2 | . 2 . Scan Component 1 | . 1 . Repair 1 | . 1 . Recycling Unit Hacks . | . . . Scanalyzer . | . . . Garrison Access Hacks . | . . . Unauthorized Hacks 1 | . 1 . Terminals 1 | . 1 . Botnet 1 | . 1 . Fabricators . | . . . Repair Stations . | . . . Recycling Units . | . . . Scanalyzers . | . . . Garrison Access . | . . . Data Cores Recovered . | . . . Used . | . . . Hacking Detections 4 | . 4 . Full Trace Events 1 | . 1 . Feedback Events . | . . . Feedback Blocked . | . . . Robot Schematics Acquired . | . . . Robots Built . | . . . Authchips . | . . . Time . | . . . Total Robot Build Rating . | . . . Part Schematics Acquired . | . . . Parts Built . | . . . Authchips . | . . . Time . | . . . Total Part Build Rating . | . . . Parts Repaired 1 | . 1 . Time 26 | . 26 . Parts Recycled . | . . . Recycled Matter . | . . . Retrieved Matter . | . . . Retrieved Components . | . . . Parts Scanalyzed . | . . . Part Schematics Acquired . | . . . Parts Damaged . | . . . Bothacking | -11 -10 -10 ------------ Run | Yrd Mat Min Used RIF Installer . | . . . Robots Hacked . | . . . Non-combat . | . . . Combat . | . . . Robot Hacks Applied . | . . . Relay Couplers Released . | . . . Fabnet Peak Effective % . | . . . Robots Rewired . | . . . Allies Hacked . | . . . Hacks Repelled . | . . . Allies | -11 -10 -10 -------- Run | Yrd Mat Min Total Allies . | . . . Largest Group . | . . . Highest-Rated Group . | . . . Highest-Rated Ally . | . . . Total Orders . | . . . Ally Attacks . | . . . Total Damage . | . . . Kills . | . . . Allies Corrupted . | . . . Allies Melted . | . . . Intel | -11 -10 -10 ------- Run | Yrd Mat Min Robot Analysis Total . | . . . Derelict Logs Recovered . | . . . Drone Launches . | . . . Drone Recoveries . | . . . Exploration | -11 -10 -10 ------------- Run | Yrd Mat Min Turns Passed 937 | 24 795 118 Spaces Moved 389 | 13 344 32 Core . | . . . Treads 121 | . 89 32 Legs 268 | 13 255 . Wheels . | . . . Hover . | . . . Flight . | . . . Fastest Speed 120 | 120 120 160 Average Speed 132 | 120 130 160 Slowest Speed 160 | 120 160 160 Overloaded Moves . | . . . Propulsion Burnouts . | . . . Robots Hopped . | . . . Cave-ins Triggered . | . . . Exploration Rate (%) 22 | 3 51 12 Regions Visited 2 Branch Regions 1 Pre-discovered Areas . | . . . Known Exits Taken . | . . . Unknown Exits Taken 2 | 1 1 . Scrap Searched 1 | . . 1 Spaces Dug . | . . . Terrain Destroyed 6 | 6 . . Melee . | . . . Projectile . | . . . AOE 6 | 6 . . Terrain Rammed . | . . . Walls Destroyed . | . . . Machines Disabled . | . . . Actions | -11 -10 -10 --------- Run | Yrd Mat Min Total 695 | 19 610 66 Wait 212 | 5 195 12 Move 387 | 12 343 32 Hop . | . . . Pick Up 5 | . 5 . Fast Attach 5 | . 5 . Attach 3 | . . 3 Detach . | . . . Swap 8 | 1 5 2 Drop 7 | . 7 . Fire 59 | 1 50 8 Melee 9 | . . 9 Ram . | . . . Kick . | . . . Crush . | . . . Escape Stasis . | . . . Rewire . | . . . Trap . | . . . Miscellaneous . | . . . Route ------- -11/Scrapyard -10/Materials -10/Mines History --------- Turn | Location | Event 1 | -11/Scrapyard | Discovered new exit (range 2) 25 | -11/Scrapyard | Entered Materials 321 | -10/Materials | Build established: Mutant 343 | -10/Materials | Repaired Aluminum Leg 398 | -10/Materials | Discovered new exit (range 15) 498 | -10/Materials | Core integrity fell below 50% 820 | -10/Materials | Entered Mines 854 | -10/Mines | Core integrity fell below 20% 898 | -10/Mines | Lost 3 parts (1p1u1w) 938 | -10/Mines | Destroyed by S-10 Pest with Light Assault Rifle Last Messages --------------- 00846_ G-47 Trooper destroyed. 00847_ Lgt. Ion Engine destroyed. 00855_ G-34 Mercenary knocked back. 00867_ Terrain Scanner destroyed. 00872_ Destroyed Heat Sink. 00872_ G-34 Mercenary system corrupted by crushing effect. 00873_ G-34 Mercenary system terminally corrupted. 00875_ Acquired 29 matter. 00880_ Acquired 17 matter. 00883_ Acquired 10 matter. 00906_ Searching scrap... 00906_ Found 60 Matter. 00906_ Found Welding Torch. 00906_ Found 62 Matter. 00916_ S-10 Pest destroyed. 00916_ Switching to secondary target: S-10 Pest. 00917_ Acquired 1 matter. 00922_ Destroyed Flight Unit. 00922_ S-10 Pest destroyed. 00923_ Acquired 1 matter. Map ----- +----------------------------------------------------+ | ??????#??????????????????????????? | | ?????????????????????????????????? | | ?????????????????????????????????? | | ????????????????????????? ???????? | | ?????????????????#???????????????? | | ??????????????#??????????????????? | | ????????????####?????? ??????????? | | ???????????## ##?#??????????????? | | ??????????## #######??????????? | | ??#??????## ##? ???????? | | ???????#?# #?????????? | | ????????## = ##????????? | | ????????# % #?????? | | ??#?#???# #### ### ##?????? | | ???????## s##?### ##????#?????? | | ???##### ##????###????#??????? | | ???# ###????????????????? | | ???# ##???????????????? | | ??### #?????? ????????? | | ????# ##?#?????????????? | | ???## ##????????????????? | | ???# ##??#??????????????? | | ???# ##?#????????????????? | | ???## ##???????????????????? | | ????#### #???????? ???????????? | | ???????##@*##????????????????????? | | ??########%#?????????????????????? | | ??# #%###### #????????? | | ??# [%| ????????? | | ??# = #???????????? | | ??# ######### ##???????????? | | ??##T####????????????????????????? | | ???#?????????????????????????????? | | ?????????????????????????????????? | | | | | | | | | | | | | | | | | | | | | | | | | | | | | | | | | +----------------------------------------------------+ Best States ------------- Heat Dissipation 35 Coolant Potential 50 Energy Generation 10 Energy Capacity 250 Matter Stores 300 Matter Capacity 300 Sight Range 16 Terrain Scan Range 14 Terrain Scan Density 10 Evasion (%) 55 Recoil Reduction 2 Item Schematics ----------------- None Robot Schematics ------------------ None Fabricated ------------ Nothing Alien Tech Used ----------------- None Achievements -------------- None Challenges ------------ None Game ------ Seed DimensionalRagnarokField Manual? 0 Play Time 00:13:16 Cumulative 44.9 hours Start 2024.12.30 @ 17:26:09 End 2024.12.30 @ 17:41:13 Sessions 1 Manual Loads 0 Difficulty Rogue Special Mode None Game No. 46 Rogue 46 Adventurer 0 Explorer 0 Win Type - Total 0 Types 0/0/0/0/0/0/0/0/0 Lore% 14 Gallery% 32 Achievement% 25 Wizard Run 0 Options --------- Layout 0 ASCII 0 Keyboard 0 Movement Mouse Keybinds 0 Fullscreen 1 Font 12/Terminus Map View 38x28 Zoom Use 99% Tactical HUD 1 Map Filters NONE Filters NONE Steam SD RUN: e33d1ab6-9473-4bc7-8ae3-0c5303658aec